Cogmind - Beta 15 --- EXPLORER MODE // 2025.10.14 @ 13:37:25 Player: Akogishi Result: Self-destructed Performance ------------- Evolutions (1) 500 Regions Visited (4) 800 Robots Destroyed (24) 120 Value Destroyed (476) 476 Prototype IDs (23) 460 Alien Tech Used (0) 0 Bonus (300) 300 TOTAL SCORE: 2656 Bonus ------- Aligned with FarCom 300 Cogmind --------- Core Integrity 387/400 Matter 300/300 Energy 250/250 System Corruption 0% Temperature Cool (0) Movement Walking (190) Ox1 Location -9/Exiles Parts ------- > --- POWER (1) -------- Ion Engine > --- PROPULSION (2) --- Improved Aluminum Leg Improved Aluminum Leg > --- UTILITY (5) ------ Large Storage Unit Sensor Array Seismic Detector Targeting Computer Medium Armor Plating > --- WEAPON (2) ------- EM Shotgun EM Shotgun > --- INVENTORY (15) --- Aluminum Leg Signal Interpreter Targeting Computer Targeting Computer Targeting Computer Propulsion Shielding EM Shotgun Light EM Pulse Cannon Mini Grenade Launcher Field Lobotomy Kit (5) Shock Trap Shock Trap Shock Trap Shock Trap Shock Trap Peak State ------------ > --- POWER ------------ Ion Engine > --- PROPULSION ------- Improved Aluminum Leg Improved Aluminum Leg > --- UTILITY ---------- Large Storage Unit Sensor Array Seismic Detector Targeting Computer Medium Armor Plating > --- WEAPON ----------- EM Shotgun EM Shotgun > --- INVENTORY -------- Aluminum Leg Signal Interpreter Targeting Computer Targeting Computer Targeting Computer Propulsion Shielding EM Shotgun Light EM Pulse Cannon Mini Grenade Launcher Field Lobotomy Kit Shock Trap Shock Trap Shock Trap Shock Trap Shock Trap [Rating: 17] Favorites ----------- Power Light Ion Engine Engine Light Ion Engine Propulsion Wheel Treads Light Treads Leg Aluminum Leg Wheel Wheel Hover Unit Combat Airjet Utility Seismic Detector Device Seismic Detector Storage Medium Storage Unit Processor Targeting Computer Protection Medium Armor Plating Weapon Light Assault Rifle Energy Gun EM Shotgun Energy Cannon Light EM Pulse Cannon Ballistic Gun Light Assault Rifle Launcher Mini Grenade Launcher Special Weapon Mining Laser Build | -11 -10 -9 -9 -9 ------- Run | Yrd Mat Mat Min Exi Slots Evolved 3 | . 1 2 . . Power . | . . . . . Propulsion . | . . . . . Utility 3 | . 1 2 . . Weapon . | . . . . . Parts Attached 36 | 21 6 3 6 . Power 5 | 4 1 . . . Engine 5 | 4 1 . . . Core . | . . . . . Reactor . | . . . . . Propulsion 10 | 7 . . 3 . Treads 2 | 2 . . . . Leg 5 | 2 . . 3 . Wheel 2 | 2 . . . . Hover 1 | 1 . . . . Flight . | . . . . . Utility 10 | 5 1 2 2 . Device 2 | 2 . . . . Storage 3 | 1 1 . 1 . Processor 1 | . . 1 . . Hackware . | . . . . . Protection 4 | 2 . 1 1 . Artifact . | . . . . . Weapon 11 | 5 4 1 1 . Energy Gun 6 | 1 4 . 1 . Energy Cannon 1 | . . 1 . . Ballistic Gun 2 | 2 . . . . Ballistic Cannon . | . . . . . Launcher 1 | 1 . . . . Special Weapon 1 | 1 . . . . Impact Weapon . | . . . . . Slashing Weapon . | . . . . . Piercing Weapon . | . . . . . Special Melee Weapon . | . . . . . Unidentified Prototypes . | . . . . . Parts Lost 9 | 9 . . . . Power 2 | 2 . . . . Propulsion 3 | 3 . . . . Utility 2 | 2 . . . . Weapon 2 | 2 . . . . Highest Loss Streak 9 | 9 . . . . To Critical Strikes . | . . . . . Average Backups 9 | 8 13 12 12 9 Power . | . 1 1 1 . Propulsion 1 | 2 1 . . 1 Utility 4 | 4 8 8 7 5 Weapon 1 | . 2 2 3 3 Tool/Special . | . . . . . Unused Backups 12 | . 5 1 1 5 Power . | . . . . . Propulsion 1 | . . 1 . . Utility 9 | . 3 . 1 5 Weapon 2 | . 2 . . . Tool/Special . | . . . . . Average Slot Usage (%) 99 | . 100 99 100 100 Engine 10 | . 12 10 10 10 Leg 10 | . . . 11 20 Wheel 10 | . 25 20 8 . Device 21 | . 25 20 20 20 Storage 10 | . 12 10 10 10 Processor 7 | . . 9 10 10 Protection 7 | . . 10 10 10 Energy Gun 18 | . 22 15 17 20 Launcher 1 | . 2 1 1 . Peak Build Rating 17 | 13 11 14 16 17 Average Rating 10 | 9 10 13 15 16 On Entrance 10 | . 9 11 14 16 Naked Turns . | . . . . . Heaviest Build 41 | 18 33 41 41 40 Greatest Support 40 | 40 20 20 26 26 Greatest Overweight (x) 4 | 4 1 2 2 1 Average Overweight (x) . | . . 1 1 1 Largest Inventory Capacity 15 | 10 15 15 15 15 Average Capacity 11 | 9 14 15 15 15 Most Carried 15 | 10 15 13 15 15 Average Carried 9 | 8 13 11 13 14 Final Capacity 15 | 10 15 15 15 15 Final Carried 15 | 10 14 12 15 15 Class Distribution -------------------- 98% | Hacker-Mutant Dominant Class ---------------- Hacker-Mutant | -10/Materials Hacker-Mutant | -9/Materials Hacker-Mutant | -9/Mines Hacker-Mutant | -9/Exiles Resources | -11 -10 -9 -9 -9 ----------- Run | Yrd Mat Mat Min Exi Matter Collected 831 | 458 103 100 170 . Remotely . | . . . . . Salvage Created 665 | 255 203 59 148 . Parts 34 | 12 14 2 6 . Haulers Intercepted 1 | . 1 . . . Recyclers Shooed . | . . . . . Parts Field Recycled . | . . . . . Retrieved Matter . | . . . . . Parts Self-Destructed . | . . . . . Prevented . | . . . . . Kills | -11 -10 -9 -9 -9 ------- Run | Yrd Mat Mat Min Exi Combat Hostiles Destroyed 20 | 6 6 2 6 . Guns 8 | 6 2 . . . Cannons 1 | . . . 1 . AOE 11 | . 4 2 5 . Classes Destroyed 9 | 5 4 . . . Worker 3 | 3 . . . . Tunneler 1 | 1 . . . . Hauler 1 | . 1 . . . Recycler 2 | 1 . 1 . . Watcher 1 | . 1 . . . Swarmer 8 | . 4 2 2 . Grunt 6 | . 2 . 4 . Demolisher 2 | 2 . . . . Assembled 4 | 4 . . . . Best Kill Streak 5 | 4 5 3 4 . Combat Bots Only 4 | 4 4 2 4 . Max Kills in Single Turn 3 | 1 2 2 3 . Gunslinging . | . . . . . Exploded 3 | . 2 1 3 . Melee . | . . . . . Uniques/NPCs Destroyed . | . . . . . Combat | -11 -10 -9 -9 -9 -------- Run | Yrd Mat Mat Min Exi Hostile Shots Fired 86 | 59 10 8 9 . Missed 16 | 6 3 2 5 . Hits 70 | 53 7 6 4 . Melee 8 | 8 . . . . Projectile 62 | 45 7 6 4 . AOE 35 | 35 . . . . Part Disruptions 1 | 1 . . . . Damage Taken 1206 | 1098 41 36 31 . Core 235 | 215 7 5 8 . Absorbed by Shields . | . . . . . Redirected to Shielding 51 | 51 . . . . Ignored by Resistances 715 | 644 28 23 20 . Core Remaining (%) 12 | 14 11 . . . Volleys Fired 70 | 51 10 2 7 . Largest 2 | 2 2 1 2 . Hottest 100 | 100 80 30 86 . Shots Fired 94 | 64 17 2 11 . Gun 67 | 54 13 . . . Cannon 5 | . . . 5 . Launcher 15 | 3 4 2 6 . Special 7 | 7 . . . . Kinetic 43 | 43 . . . . Thermal 18 | 18 . . . . Explosive 15 | 3 4 2 6 . Electromagnetic 18 | . 13 . 5 . Robot Hit Streak 25 | 14 17 . 25 . Robot Miss Streak 1 | 1 . . . . Penetration Max . | . . . . . Secondary Targets 1 | 1 . . . . Max Gunslinging Chain 1 | 1 . . . . Shots Hit Robots 68 | 47 13 . 8 . Core Hits 50 | 28 9 4 9 . Critical Kills 1 | 1 . . . . Critical Parts Destroyed . | . . . . . Critical Strikes 1 | 1 . . . . Destroy 1 | 1 . . . . Melee Attacks . | . . . . . Impact . | . . . . . Slashing . | . . . . . Piercing . | . . . . . Sneak Attacks . | . . . . . Combat Hostiles . | . . . . . Follow-up Attacks . | . . . . . Damage Inflicted 1430 | 422 406 89 513 . Guns 551 | 409 142 . . . Cannons 113 | . . . 113 . Explosions 765 | 12 264 89 400 . Melee . | . . . . . Ramming 1 | 1 . . . . Kinetic 306 | 306 . . . . Thermal 103 | 103 . . . . Explosive 765 | 12 264 89 400 . Electromagnetic 255 | . 142 . 113 . Impact . | . . . . . Slashing . | . . . . . Piercing . | . . . . . Highest Corruption 2 | . 2 . . . Average Corruption 1 | . 1 . . . Corruption Purged . | . . . . . Corruption Blocked . | . . . . . Effects 3 | . 3 . . . Message Errors 1 | . 1 . . . Heat Flow Errors 2 | . 2 . . . Overload Shots . | . . . . . Overflow Damage . | . . . . . Projectiles . | . . . . . Explosions . | . . . . . Melee . | . . . . . Knockbacks . | . . . . . Impact . | . . . . . Kinetic . | . . . . . Secondary . | . . . . . Self-Inflicted Damage . | . . . . . Shots . | . . . . . Rammed 2 | 2 . . . . Targets Rammed 2 | 2 . . . . Kicked . | . . . . . Crushed . | . . . . . Highest Temperature 324 | 324 215 . 96 . Average Temperature 87 | 109 69 . 39 . Received Heat Transfer 320 | 260 30 . 30 . Effects 1 | 1 . . . . Interference 1 | 1 . . . . Siege Activations . | . . . . . Martial Activations . | . . . . . Shielding Activations . | . . . . . Robots Disrupted . | . . . . . Combat Hostiles . | . . . . . Robots Corrupted . | . . . . . Combat Hostiles . | . . . . . Parts Fried . | . . . . . Impact Corruptions . | . . . . . Robots Melted . | . . . . . Combat Hostiles . | . . . . . Parts Melted . | . . . . . Heat Transferred 225 | 225 . . . . Parts Sabotaged . | . . . . . Parts Stolen . | . . . . . Parts Stripped . | . . . . . Power Chain Reactions . | . . . . . Alert | -11 -10 -9 -9 -9 ------- Run | Yrd Mat Mat Min Exi Maximum Alert Level . | . . . . . Low Security (%) 100 | 100 100 100 100 . Level 1 . | . . . . . Level 2 . | . . . . . Level 3 . | . . . . . Level 4 . | . . . . . Level 5 . | . . . . . High Security . | . . . . . Max Security . | . . . . . Peak Influence 146 | 30 102 56 146 . Initial 7 | . . 7 7 . Average 4 | . 20 20 17 . Influence Increases 551 | 75 184 71 221 . Destroy 0b10 Robot/C 320 | 40 120 40 120 . Destroy 0b10 Robot/NC 40 | 25 10 5 . . Destroy Leader 74 | 10 24 10 30 . Disable Machine 8 | . . . 8 . Destroy Structure 109 | . 30 16 63 . Influence Decreases 551 | 75 159 70 247 . Entered New Map 37 | . . 18 19 . Time Decay 509 | 70 159 52 228 . Lost Part 5 | 5 . . . . Squads Dispatched . | . . . . . Investigation . | . . . . . Extermination . | . . . . . Reinforcement . | . . . . . Assault . | . . . . . Garrison . | . . . . . Intercept . | . . . . . Searches Triggered . | . . . . . Construction Impeded . | . . . . . Haulers Reinforced . | . . . . . Active Scanning Responses . | . . . . . Cargo Convoy Interrupts . | . . . . . Stealth | -11 -10 -9 -9 -9 --------- Run | Yrd Mat Mat Min Exi Distress Signals 3 | . 1 2 . . Communications Jammed . | . . . . . Distress Signals . | . . . . . Times Spotted 50 | 33 7 5 5 . Peak Tracking Total 20 | 20 3 5 3 . Tactical Retreats 1 | 1 . . . . Traps | -11 -10 -9 -9 -9 ------- Run | Yrd Mat Mat Min Exi Traps Triggered 2 | . 2 . . . Indirectly . | . . . . . Trap Hack Attempts . | . . . . . Triggered . | . . . . . Disarmed . | . . . . . Reprogrammed . | . . . . . Reused . | . . . . . Traps Extracted . | . . . . . Installed . | . . . . . Triggered . | . . . . . Most Traps Carried 5 | . . . 5 5 Machines | -11 -10 -9 -9 -9 ---------- Run | Yrd Mat Mat Min Exi Machines Disabled 2 | . . . 2 . Max in Single Turn 1 | . . . 1 . Machines Repaired . | . . . . . Machines Dismantled . | . . . . . Machines Sabotaged . | . . . . . Overloaded Fab Kills . | . . . . . Hacking | -11 -10 -9 -9 -9 --------- Run | Yrd Mat Mat Min Exi Machines Accessed 5 | . 3 . . 2 Terminals 3 | . 3 . . . Fabricators . | . . . . . Repair Stations . | . . . . . Recycling Units . | . . . . . Scanalyzers . | . . . . . Garrison Access . | . . . . . Total Hacks 6 | . 3 . . 3 Successful 6 | . 3 . . 3 Failed . | . . . . . Catastrophic . | . . . . . Database Lockouts . | . . . . . Manual 1 | . . . . 1 Terminals 3 | . 3 . . . Fabricators . | . . . . . Repair Stations . | . . . . . Recycling Units . | . . . . . Scanalyzers . | . . . . . Garrison Access . | . . . . . Terminal Hacks 6 | . 3 . . 3 Record 3 | . 1 . . 2 Reinforcement Status 1 | . 1 . . . Hauler Manifests 1 | . 1 . . . Proto ID Catalog 1 | . . . . 1 Fabricator Hacks . | . . . . . Repair Station Hacks . | . . . . . Recycling Unit Hacks . | . . . . . Scanalyzer . | . . . . . Garrison Access Hacks . | . . . . . Unauthorized Hacks . | . . . . . Terminals . | . . . . . Fabricators . | . . . . . Repair Stations . | . . . . . Recycling Units . | . . . . . Scanalyzers . | . . . . . Garrison Access . | . . . . . Data Cores Recovered . | . . . . . Used . | . . . . . Hacking Detections 1 | . 1 . . . Full Trace Events . | . . . . . Feedback Events . | . . . . . Feedback Blocked . | . . . . . Robot Schematics Acquired . | . . . . . Robots Built . | . . . . . Authchips . | . . . . . Time . | . . . . . Total Robot Build Rating . | . . . . . Part Schematics Acquired . | . . . . . Parts Built . | . . . . . Authchips . | . . . . . Time . | . . . . . Total Part Build Rating . | . . . . . Parts Repaired . | . . . . . Time . | . . . . . Parts Recycled . | . . . . . Recycled Matter . | . . . . . Retrieved Matter . | . . . . . Retrieved Components . | . . . . . Parts Scanalyzed . | . . . . . Part Schematics Acquired . | . . . . . Parts Damaged . | . . . . . Bothacking | -11 -10 -9 -9 -9 ------------ Run | Yrd Mat Mat Min Exi Used RIF Installer . | . . . . . Robots Hacked . | . . . . . Non-combat . | . . . . . Combat . | . . . . . Robot Hacks Applied . | . . . . . Relay Couplers Released . | . . . . . Fabnet Peak Effective % . | . . . . . Robots Rewired . | . . . . . Allies Hacked . | . . . . . Hacks Repelled . | . . . . . Allies | -11 -10 -9 -9 -9 -------- Run | Yrd Mat Mat Min Exi Total Allies . | . . . . . Largest Group . | . . . . . Highest-Rated Group . | . . . . . Highest-Rated Ally . | . . . . . Total Orders . | . . . . . Ally Attacks . | . . . . . Total Damage . | . . . . . Kills . | . . . . . Allies Corrupted . | . . . . . Allies Melted . | . . . . . Intel | -11 -10 -9 -9 -9 ------- Run | Yrd Mat Mat Min Exi Active Infowar (turns) 6225 | 3946 463 106 1243 467 Sensors 2693 | 414 463 106 1243 467 Seismic 5809 | 3532 463 106 1241 467 Robot Analysis Total . | . . . . . Derelict Logs Recovered . | . . . . . Drone Launches . | . . . . . Drone Recoveries . | . . . . . Exploration | -11 -10 -9 -9 -9 ------------- Run | Yrd Mat Mat Min Exi Turns Passed 7865 | 5586 463 106 1243 467 Spaces Moved 3582 | 2044 392 89 813 244 Core 10 | 10 . . . . Treads 10 | 10 . . . . Legs 883 | 279 . . 360 244 Wheels 1676 | 742 392 89 453 . Hover 1003 | 1003 . . . . Flight . | . . . . . Fastest Speed 50 | 50 80 95 95 190 Average Speed 128 | 125 93 99 137 190 Slowest Speed 250 | 250 95 110 190 190 Overloaded Moves . | . . . . . Propulsion Burnouts . | . . . . . Robots Hopped . | . . . . . Potential Cave-ins . | . . . . . Cave-ins Triggered . | . . . . . Exploration Rate (%) 60 | 88 60 9 94 49 Regions Visited 4 Branch Regions 2 Pre-discovered Areas 1 | . . . 1 . Known Exits Taken 4 | 1 1 1 1 . Unknown Exits Taken . | . . . . . Scrap Searched 1 | . . . 1 . Spaces Dug 10 | 3 7 . . . Terrain Destroyed 151 | 17 32 23 79 . Melee . | . . . . . Projectile 3 | 3 . . . . AOE 148 | 14 32 23 79 . Terrain Rammed . | . . . . . Walls Destroyed . | . . . . . Machines Disabled . | . . . . . Actions | -11 -10 -9 -9 -9 --------- Run | Yrd Mat Mat Min Exi Total 6733 | 4983 474 104 925 247 Wait 2971 | 2846 34 8 83 . Move 3578 | 2043 391 88 812 244 Hop . | . . . . . Pick Up 42 | 17 16 1 7 1 Fast Attach 9 | 9 . . . . Attach 10 | 7 1 2 . . Detach . | . . . . . Swap 30 | 8 9 2 11 . Drop 20 | . 13 1 5 1 Fire 70 | 51 10 2 7 . Melee . | . . . . . Ram . | . . . . . Kick . | . . . . . Crush 2 | 2 . . . . Escape Stasis . | . . . . . Rewire 1 | . . . . 1 Trap . | . . . . . Miscellaneous . | . . . . . Route ------- -11/Scrapyard -10/Materials (discovered 2 exits: *Mat / *Min) -9/Materials -9/Mines (discovered 3 exits: *Mat x2 / *Exi) -9/Exiles (discovered 1 exit: *Min) History --------- Turn | Location | Event 30 | -11/Scrapyard | Identified exit to Materials 30 | -11/Scrapyard | Discovered exit to Materials (range 15) 1531 | -11/Scrapyard | Assembled infested the area 1615 | -11/Scrapyard | Core integrity fell below 50% 1645 | -11/Scrapyard | Core integrity fell below 20% 1653 | -11/Scrapyard | Lost 9 parts (2p3n2u2w) 5587 | -11/Scrapyard | Entered Materials 5587 | -10/Materials | Evolved 1 slot: Utility x1 5650 | -10/Materials | Build established: Hacker-Mutant 5992 | -10/Materials | Identified exit to Mines 5992 | -10/Materials | Discovered exit to Mines (range 13) 5993 | -10/Materials | Identified exit to Materials 5993 | -10/Materials | Discovered exit to Materials (range 15) 6050 | -10/Materials | Entered another Materials area 6050 | -9/Materials | Evolved 2 slots: Utility x2 6134 | -9/Materials | Identified exit to Mines 6134 | -9/Materials | Discovered exit to Mines (range 16) 6156 | -9/Materials | Entered Mines 6347 | -9/Mines | Learned location of Storage (-8) 6500 | -9/Mines | Identified exit to Materials 6500 | -9/Mines | Discovered exit to Materials (range 16) 6624 | -9/Mines | Discovered exit to Materials (range 15) 6883 | -9/Mines | Deemed a non-threat by the Exiles lab entrance 6885 | -9/Mines | Identified exit to Exiles 6885 | -9/Mines | Discovered exit to Exiles (range 5) 7117 | -9/Mines | Found a hidden stash of uninstalled traps 7399 | -9/Mines | Entered Exiles 7428 | -9/Exiles | Identified exit to Mines 7428 | -9/Exiles | Discovered exit to Mines (range 15) 7487 | -9/Exiles | Met 8R-AWN 7521 | -9/Exiles | Met EX-HEX 7685 | -9/Exiles | Met EX-BIN 7710 | -9/Exiles | Aligned with FarCom system 7712 | -9/Exiles | Given EX-Vault access code 7798 | -9/Exiles | Opened EX-Vault 7865 | -9/Exiles | Found Field Lobotomy Kit 7866 | -9/Exiles | Self-destructed Last Messages --------------- Cloak of Protection Skeleton Box Trap Reconfigurator Supersonic Drone Bay Army-in-a-Box PSU Rigger Chronowheel AWS/Thermal Latent Energy Streamer Gui. Plasma Cannon Firepult YOLO Cannon AWS/Gauss XL Autogun Array AWS/Autocannon Field Lobotomy Kit Longsword +1 Deploy-a-Sentry Dropped Lgt. Ion Engine. Acquired Field Lobotomy Kit. Map ----- +----------------------------------------------------+ | | | | | | | | | | | | | | | | | | | | | | | | | | | | | | | | | | | | | | | | | | | | | | | ???????????????????????????##????????????????????? | | ???????????????????????####X####?????????????????? | | ???????????????????????#*@ #?????????????????? | | ???????????????????????# #?????????????????? | | ???????????????????????# ] ]#?????????????????? | | ???????????????????????## ##?????????????????? | | ???????????????????????#X #??????????????????? | | ???????????????????????## #??????????????????? | | ????????????????????????# #??????????????????? | | ????????????????????????# #########??????????? | | ????????????????????????# ##""""""#??????????? | | ????????????????????????# ## """#??????????? | | ????????????????????????# X""#??????????? | | ????????????????????????# ## """#??????????? | | ??????????????????####??# ##""""""#??????????? | | ?????????????????""""""?# #########??????????? | | ?????????????????"""" ## #??????????????????? | | ????????????????#""X" #??????????????????? | | ????????????????#" #??????????????????? | | ????????????????#" ## #??????????????????? | | ????????????????#""""""?# #?#########????????? | | ????????????????##"###??# #?#"""""""#????????? | | ????????????????? ??????# #?#"""""""#????????? | | ????????????????????????# #?#"""""""#????????? | | ???????????????????????## ###"" """"#????????? | | ???????????????????????#" """"#????????? | | ???????????????????????#" """#????????? | +----------------------------------------------------+ Best States ------------- Heat Dissipation 28 Energy Generation 10 Energy Capacity 250 Matter Stores 300 Matter Capacity 300 Sight Range 16 Robot Scan Range 14 Terrain Scan Density 10 Armor Coverage 225 Resistance: KI 35 Resistance: TH 35 Resistance: EX 35 Resistance: EM 35 Resistance: I 35 Resistance: S 35 Resistance: P 35 Propulsion Shielding 33 Evasion (%) 55 Targeting Accuracy 5 Recoil Reduction 2 Offensive Hacking 20 Item Schematics ----------------- None Robot Schematics ------------------ None Fabricated ------------ Nothing Repaired ---------- Nothing Alien Tech Used ----------------- None Achievements -------------- None Challenges ------------ None Game ------ Seed ThunderJunkFemtoactuators Manual? 0 Play Time 00:50:40 Cumulative 47.1 hours Start 2025.10.13 @ 20:39:49 End 2025.10.14 @ 13:37:25 Sessions 10 Manual Loads 0 Difficulty Explorer Special Mode None Game No. 19 Rogue 0 Adventurer 1 Explorer 18 Win Type - Total 1 Types 1/0/0/0/0/0/0/0/0/0 Lore% 11 Gallery% 35 Achievement% 29 Wizard Run 0 Options --------- Layout 1 ASCII 0 Keyboard 0 Movement Numpad Keybinds 0 Fullscreen 1 Font 24/Smallcaps Map View 50x35 Zoom Use 0% Tactical HUD 0 Map Filters NONE Filters NONE Steam 1 RUN: 099398f7-e424-4727-b124-d2e54fe5649f